fUST/lending_fUST_20250626
["ID","MTS","AMOUNT","RATE_DAILY","PERIOD"]
[367622751,1750879844079,-500.0,0.00017735,2]
[367622753,1750879844088,-1000.0,0.00017735,2]
[367622755,1750879844097,-500.0,0.00017735,2]
[367622757,1750879844107,-460.0,0.00017808,2]
[367622759,1750879844116,-460.0,0.00017808,2]
[367622761,1750879844125,-460.0,0.00017808,2]
[367622763,1750879844135,-460.0,0.00017808,2]
[367622765,1750879844144,-302.67502131,0.00017808,2]
[367622767,1750879844154,-460.0,0.00017808,2]
[367622769,1750879844164,-460.0,0.00017808,2]
[367622771,1750879844173,-570.09,0.00017808,2]
[367622773,1750879844183,-460.0,0.00017808,2]
[367622775,1750879844192,-844.63,0.00017808,2]
[367622777,1750879844202,-460.0,0.00017808,2]
[367622778,1750879844211,-460.0,0.00017808,2]
[367622779,1750879844221,-1854.08,0.00017808,2]
[367622780,1750879844230,-3439.32,0.00017808,2]
[367622781,1750879844240,-331.9665454,0.00017808,2]
[367622782,1750879844249,-460.0,0.00017808,2]
[367622783,1750879844259,-1368.35,0.00017808,2]
[367622784,1750879844268,-485.01,0.00017808,2]
[367622785,1750879844278,-1889.98,0.00017808,2]
[367622786,1750879844287,-460.0,0.00017808,2]
[367622787,1750879844297,-153.3,0.00017808,2]
[367622788,1750879844307,-764.44,0.00017808,2]
[367622789,1750879844316,-460.0,0.00017808,2]
[367622790,1750879844326,-460.0,0.00017808,2]
[367622791,1750879844335,-817.46,0.00017808,2]
[367622793,1750879844344,-460.0,0.00017808,2]
[367622795,1750879844354,-1687.21,0.00017808,2]
[367622797,1750879844362,-3328.99,0.00017808,2]
[367622798,1750879844372,-521.37,0.00017808,2]
[367622800,1750879844381,-1003.52,0.00017808,2]
[367622802,1750879844391,-460.0,0.00017808,2]
[367622804,1750879844400,-2727.71,0.00017808,2]
[367622806,1750879844409,-1525.66,0.00017808,2]
[367622809,1750879844420,-501.38,0.00017808,2]
[367622811,1750879844429,-1919.22,0.00017808,2]
[367622813,1750879844439,-460.0,0.00017808,2]
[367622815,1750879844448,-460.0,0.00017808,2]
[367622817,1750879844457,-460.0,0.00017808,2]
[367622819,1750879844467,-460.0,0.00017808,2]
[367622821,1750879844476,-460.0,0.00017808,2]
[367622823,1750879844485,-845.12,0.00017808,2]
[367622825,1750879844495,-690.86,0.00017808,2]
[367622827,1750879844505,-460.2,0.00017808,2]
[367622829,1750879844514,-460.0,0.00017808,2]
[367622831,1750879844523,-1157.75,0.00017808,2]
[367622833,1750879844532,-460.0,0.00017808,2]
[367622835,1750879844542,-1833.02,0.00017808,2]
[367622837,1750879844551,-560.09,0.00017808,2]
[367622839,1750879844561,-460.0,0.00017808,2]
[367622841,1750879844571,-1998.0,0.00017808,2]
[367622843,1750879844580,-460.0,0.00017808,2]
[367622845,1750879844589,-671.46,0.00017808,2]
[367622847,1750879844599,-591.36,0.00017808,2]
[367622849,1750879844608,-449.99,0.00017808,2]
[367622851,1750879844617,-1490.15,0.00017808,2]
[367622853,1750879844627,-460.0,0.00017808,2]
[367622855,1750879844636,-907.24,0.00017808,2]
[367622857,1750879844647,-1029.88,0.00017808,2]
[367622859,1750879844656,-460.0,0.00017808,2]
[367622861,1750879844666,-460.0,0.00017808,2]
[367622863,1750879844676,-460.0,0.00017808,2]
[367622865,1750879844685,-460.0,0.00017808,2]
[367622867,1750879844694,-2005.87,0.00017808,2]
[367622869,1750879844704,-250.0,0.00017837,2]
[367622870,1750879844715,-168.0,0.00017865,2]
[367622873,1750879844727,-420.0,0.00017958,2]
[367622875,1750879844737,-36664.09008058,0.00018,2]
[367622877,1750879844747,-151.0,0.00018,2]
[367622879,1750879844756,-151.0,0.00018,2]
[367622881,1750879844765,-269.632484,0.00018,2]
[367622883,1750879844775,-151.0,0.00018,2]
[367622885,1750879844784,-151.0,0.00018,2]
[367622887,1750879844793,-151.0,0.00018,2]
[367622889,1750879844803,-196.042969,0.00018,2]
[367622891,1750879844813,-196.042969,0.00018,2]
[367622893,1750879844822,-3218.82112114,0.00018003,2]
[367622895,1750879844831,-151.0,0.00018004,2]
[367622897,1750879844841,-151.0,0.00018004,2]
[367622899,1750879844850,-168.0,0.00018029,2]
[367622901,1750879844859,-366.0085437,0.00018039,2]
[367622903,1750879844868,-366.0085437,0.00018039,2]
[367622905,1750879844878,-226.945,0.00018061,2]
[367622907,1750879844888,-639.38,0.00018072,3]
[367622909,1750879844898,-319.68,0.00018072,3]
[367622911,1750879844907,-460.0,0.00018082,2]
[367622913,1750879844917,-460.0,0.00018082,2]
[367622915,1750879844926,-460.0,0.00018082,2]
[367622917,1750879844936,-151.0,0.00018082,2]
[367622919,1750879844945,-151.0,0.00018082,2]
[367622921,1750879844954,-460.0,0.00018082,2]
[367622923,1750879844963,-252.125982,0.00018082,2]
[367622925,1750879844973,-252.125982,0.00018082,2]
[367622927,1750879844983,-460.0,0.00018082,2]
[367622929,1750879844992,-460.0,0.00018082,2]
[367622931,1750879845001,-570.09,0.00018082,2]
[367622933,1750879845011,-460.0,0.00018082,2]
[367622935,1750879845020,-844.63,0.00018082,2]
[367622937,1750879845030,-460.0,0.00018082,2]
[367622939,1750879845040,-460.0,0.00018082,2]
[367622941,1750879845049,-1854.08,0.00018082,2]
[367622943,1750879845059,-3439.32,0.00018082,2]
[367622945,1750879845068,-460.0,0.00018082,2]
[367622947,1750879845077,-1368.35,0.00018082,2]
[367622949,1750879845086,-485.01,0.00018082,2]
[367622951,1750879845096,-1889.98,0.00018082,2]
[367622953,1750879845104,-460.0,0.00018082,2]
[367622955,1750879845113,-764.44,0.00018082,2]
[367622957,1750879845122,-460.0,0.00018082,2]
[367622959,1750879845133,-460.0,0.00018082,2]
[367622961,1750879845142,-817.46,0.00018082,2]
[367622963,1750879845151,-460.0,0.00018082,2]
[367622965,1750879845160,-1687.21,0.00018082,2]
[367622967,1750879845171,-3328.99,0.00018082,2]
[367622969,1750879845180,-521.37,0.00018082,2]
[367622971,1750879845190,-1003.52,0.00018082,2]
[367622973,1750879845199,-460.0,0.00018082,2]
[367622975,1750879845210,-2727.71,0.00018082,2]
[367622977,1750879845220,-1525.66,0.00018082,2]
[367622980,1750879845229,-501.38,0.00018082,2]
[367622981,1750879845240,-1919.22,0.00018082,2]
[367622983,1750879845250,-460.0,0.00018082,2]
[367622985,1750879845260,-460.0,0.00018082,2]
[367622987,1750879845270,-460.0,0.00018082,2]
[367622989,1750879845279,-460.0,0.00018082,2]
[367622992,1750879845290,-460.0,0.00018082,2]
[367622994,1750879845300,-845.12,0.00018082,2]
[367622996,1750879845310,-690.86,0.00018082,2]
[367622998,1750879845319,-460.2,0.00018082,2]
[367623000,1750879845327,-460.0,0.00018082,2]
[367623002,1750879845337,-1157.75,0.00018082,2]
[367623004,1750879845346,-460.0,0.00018082,2]
[367623006,1750879845355,-1833.02,0.00018082,2]
[367623008,1750879845364,-560.09,0.00018082,2]
[367623010,1750879845373,-467.61591311,0.00018082,2]
[367623012,1750879845384,-1998.0,0.00018082,2]
[367623014,1750879845393,-460.0,0.00018082,2]
[367623016,1750879845402,-671.46,0.00018082,2]
[367623018,1750879845413,-591.36,0.00018082,2]
[367623020,1750879845422,-1490.15,0.00018082,2]
[367623022,1750879845432,-460.0,0.00018082,2]
[367623024,1750879845442,-907.24,0.00018082,2]
[367623026,1750879845451,-1029.88,0.00018082,2]
[367623028,1750879845460,-460.0,0.00018082,2]
[367623030,1750879845469,-460.0,0.00018082,2]
[367623032,1750879845478,-460.0,0.00018082,2]
[367623034,1750879845487,-460.0,0.00018082,2]
[367623036,1750879845497,-2005.87,0.00018082,2]
[367623038,1750879845506,-177.4156324,0.0001815,2]
[367623040,1750879845515,-1149.7195556,0.0001815,2]
[367623042,1750879845524,-177.3826656,0.0001815,2]
[367623044,1750879845533,-1179.36597773,0.00018175,2]
[367623049,1750879845576,-1500.0,0.00018183,2]
[367623051,1750879845586,-500.0,0.00018199,2]
[367623053,1750879845595,-1500.0,0.00018199,2]
[367623055,1750879845604,-1500.0,0.00018199,2]
[367623058,1750879845614,-1500.0,0.00018199,2]
[367623060,1750879845623,-1500.0,0.00018203,2]
[367623061,1750879845632,-200.225,0.00018208,2]
[367623063,1750879845641,-242.589,0.00018208,2]
[367623065,1750879845654,-3218.82112114,0.00018279,2]
[367623067,1750879845663,-2161.0,0.00018313,2]
[367623070,1750879845672,-654.0,0.00018313,2]
[367623072,1750879845681,-406.0,0.00018313,2]
[367623074,1750879845693,-406.0,0.00018313,2]
[367623076,1750879845702,-965.0,0.00018313,2]
[367623078,1750879845710,-500.0,0.0001833,2]
[367623080,1750879845720,-500.0,0.0001833,2]
[367623083,1750879845730,-151.0,0.00018356,2]
[367623085,1750879845739,-151.0,0.00018356,2]
[367623087,1750879845748,-460.0,0.00018356,2]
[367623089,1750879845757,-460.0,0.00018356,2]
[367623090,1750879845767,-460.0,0.00018356,2]
[367623092,1750879845775,-460.0,0.00018356,2]
[367623094,1750879845785,-561.5848159,0.00018356,2]
[367623096,1750879845794,-460.0,0.00018356,2]
[367623098,1750879845803,-570.09,0.00018356,2]
[367623100,1750879845813,-460.0,0.00018356,2]
[367623102,1750879845823,-844.63,0.00018356,2]
[367623104,1750879845832,-460.0,0.00018356,2]
[367623106,1750879845841,-460.0,0.00018356,2]
[367623109,1750879845851,-1854.08,0.00018356,2]
[367623111,1750879845860,-3439.32,0.00018356,2]
[367623113,1750879845869,-460.0,0.00018356,2]
[367623115,1750879845878,-1368.35,0.00018356,2]
[367623117,1750879845888,-1889.98,0.00018356,2]
[367623119,1750879845897,-485.01,0.00018356,2]
[367623121,1750879845907,-460.0,0.00018356,2]
[367623123,1750879845916,-764.44,0.00018356,2]
[367623125,1750879845925,-460.0,0.00018356,2]
[367623127,1750879845934,-460.0,0.00018356,2]
[367623128,1750879845943,-817.46,0.00018356,2]
[367623130,1750879845953,-460.0,0.00018356,2]
[367623132,1750879845962,-1687.21,0.00018356,2]
[367623135,1750879845972,-3328.99,0.00018356,2]
[367623136,1750879845981,-521.37,0.00018356,2]
[367623139,1750879845991,-1003.52,0.00018356,2]
[367623141,1750879846001,-460.0,0.00018356,2]
[367623143,1750879846010,-2727.71,0.00018356,2]
[367623144,1750879846019,-1525.66,0.00018356,2]
[367623146,1750879846028,-501.38,0.00018356,2]
[367623148,1750879846038,-1919.22,0.00018356,2]
[367623150,1750879846047,-460.0,0.00018356,2]
[367623152,1750879846056,-460.0,0.00018356,2]
[367623154,1750879846066,-460.0,0.00018356,2]
[367623156,1750879846075,-460.0,0.00018356,2]
[367623159,1750879846085,-460.0,0.00018356,2]
[367623160,1750879846095,-845.12,0.00018356,2]
[367623163,1750879846105,-690.86,0.00018356,2]
[367623165,1750879846114,-460.2,0.00018356,2]
[367623167,1750879846124,-460.0,0.00018356,2]
[367623168,1750879846132,-1157.75,0.00018356,2]
[367623170,1750879846141,-347.59285744,0.00018356,2]
[367623172,1750879846151,-1833.02,0.00018356,2]
[367623174,1750879846160,-560.09,0.00018356,2]
[367623176,1750879846169,-1998.0,0.00018356,2]
[367623178,1750879846177,-460.0,0.00018356,2]
[367623180,1750879846187,-671.46,0.00018356,2]
[367623182,1750879846196,-151.0,0.00018356,2]
[367623184,1750879846205,-151.0,0.00018356,2]
[367623186,1750879846214,-591.36,0.00018356,2]
[367623188,1750879846223,-1490.15,0.00018356,2]
[367623190,1750879846233,-460.0,0.00018356,2]
[367623192,1750879846242,-907.24,0.00018356,2]
[367623194,1750879846250,-151.0,0.00018356,2]
[367623196,1750879846260,-1029.88,0.00018356,2]
[367623198,1750879846269,-460.0,0.00018356,2]
[367623200,1750879846278,-460.0,0.00018356,2]
[367623202,1750879846287,-460.0,0.00018356,2]
[367623204,1750879846296,-2005.87,0.00018356,2]
[367623206,1750879846305,-196.042969,0.00018356,2]
[367623208,1750879846314,-196.042969,0.00018356,2]
[367623210,1750879846324,-568.0,0.00018407,2]
[367623212,1750879846334,-168.0,0.00018411,2]
[367623214,1750879846342,-568.0,0.00018441,2]
[367623217,1750879846353,-159.1692736,0.00018493,2]
[367623219,1750879846362,-3218.82112114,0.00018555,2]
[367623221,1750879846371,-568.0,0.00018596,2]
[367623223,1750879846380,-1552.683546,0.00018606,2]
[367623225,1750879846390,-151.0,0.00018606,2]
[367623227,1750879846399,-151.0,0.00018606,2]
[367623229,1750879846408,-252.125982,0.00018606,2]
[367623231,1750879846417,-252.125982,0.00018606,2]
[367623233,1750879846427,-168.0,0.00018624,2]
[367623234,1750879846436,-460.0,0.0001863,2]
[367623235,1750879846445,-460.0,0.0001863,2]
[367623236,1750879846455,-460.0,0.0001863,2]
[367623237,1750879846463,-460.0,0.0001863,2]
[367623238,1750879846472,-460.0,0.0001863,2]
[367623239,1750879846481,-570.09,0.0001863,2]
[367623240,1750879846490,-460.0,0.0001863,2]
[367623241,1750879846499,-844.63,0.0001863,2]
[367623242,1750879846508,-460.0,0.0001863,2]
[367623243,1750879846517,-567.35670558,0.0001863,2]
[367623244,1750879846526,-1854.08,0.0001863,2]
[367623245,1750879846535,-3439.32,0.0001863,2]
[367623246,1750879846544,-460.0,0.0001863,2]
[367623247,1750879846553,-1368.35,0.0001863,2]
[367623249,1750879846562,-1889.98,0.0001863,2]
[367623251,1750879846571,-485.01,0.0001863,2]
[367623253,1750879846581,-460.0,0.0001863,2]
[367623255,1750879846590,-764.44,0.0001863,2]
[367623257,1750879846599,-460.0,0.0001863,2]
[367623259,1750879846609,-460.0,0.0001863,2]
[367623261,1750879846618,-817.46,0.0001863,2]
[367623263,1750879846627,-460.0,0.0001863,2]
[367623264,1750879846636,-1687.21,0.0001863,2]
[367623266,1750879846648,-3328.99,0.0001863,2]
[367623268,1750879846658,-521.37,0.0001863,2]
[367623270,1750879846667,-1003.52,0.0001863,2]
[367623272,1750879846676,-460.0,0.0001863,2]
[367623274,1750879846685,-2727.71,0.0001863,2]
[367623276,1750879846695,-1525.66,0.0001863,2]
[367623278,1750879846705,-501.38,0.0001863,2]
[367623280,1750879846714,-1919.22,0.0001863,2]
[367623283,1750879846725,-460.0,0.0001863,2]
[367623285,1750879846734,-460.0,0.0001863,2]
[367623287,1750879846743,-460.0,0.0001863,2]
[367623288,1750879846753,-460.0,0.0001863,2]
[367623291,1750879846762,-460.0,0.0001863,2]
[367623293,1750879846772,-845.12,0.0001863,2]
[367623295,1750879846781,-690.86,0.0001863,2]
[367623297,1750879846790,-460.2,0.0001863,2]
[367623299,1750879846799,-460.0,0.0001863,2]
[367623301,1750879846809,-1157.75,0.0001863,2]
[367623303,1750879846818,-1833.02,0.0001863,2]
[367623305,1750879846827,-560.09,0.0001863,2]
[367623307,1750879846836,-1998.0,0.0001863,2]
[367623309,1750879846845,-460.0,0.0001863,2]
[367623311,1750879846855,-671.46,0.0001863,2]
[367623312,1750879846864,-591.36,0.0001863,2]
[367623314,1750879846873,-1490.15,0.0001863,2]
[367623316,1750879846882,-460.0,0.0001863,2]
[367623318,1750879846891,-907.24,0.0001863,2]
[367623320,1750879846901,-1029.88,0.0001863,2]
[367623323,1750879846910,-460.0,0.0001863,2]
[367623325,1750879846920,-460.0,0.0001863,2]
[367623327,1750879846929,-460.0,0.0001863,2]
[367623328,1750879846938,-2005.87,0.0001863,2]
[367623331,1750879846947,-275.99555545,0.00018643,2]
[367623333,1750879846956,-151.0,0.000187,2]
[367623335,1750879846965,-177.4156324,0.00018712,2]
[367623337,1750879846974,-2000.0,0.00018731,2]
[367623339,1750879846983,-168.0,0.00018743,2]
[367623341,1750879846992,-2000.0,0.00018747,2]
[367623343,1750879847001,-913.91425049,0.00018747,2]
[367623345,1750879847010,-2000.0,0.00018751,2]
[367623347,1750879847018,-151.0,0.000188,2]
[367623348,1750879847027,-3218.82112114,0.00018831,2]
[367623350,1750879847037,-151.0,0.00018887,2]
[367623352,1750879847046,-1244.83040129,0.000189,2]
[367623354,1750879847055,-568.0,0.00018901,2]
[367623356,1750879847065,-151.0,0.00018904,2]
[367623358,1750879847075,-151.0,0.00018904,2]
[367623360,1750879847084,-460.0,0.00018904,2]
[367623362,1750879847093,-460.0,0.00018904,2]
[367623364,1750879847102,-460.0,0.00018904,2]
[367623366,1750879847111,-460.0,0.00018904,2]
[367623368,1750879847120,-460.0,0.00018904,2]
[367623370,1750879847130,-570.09,0.00018904,2]
[367623372,1750879847140,-460.0,0.00018904,2]
[367623374,1750879847150,-844.63,0.00018904,2]
[367623376,1750879847159,-460.0,0.00018904,2]
[367623378,1750879847168,-1854.08,0.00018904,2]
[367623380,1750879847177,-3439.32,0.00018904,2]
[367623382,1750879847186,-460.0,0.00018904,2]
[367623384,1750879847195,-1368.35,0.00018904,2]
[367623386,1750879847205,-1889.98,0.00018904,2]
[367623388,1750879847215,-485.01,0.00018904,2]
[367623390,1750879847224,-460.0,0.00018904,2]
[367623392,1750879847233,-764.44,0.00018904,2]
[367623394,1750879847243,-460.0,0.00018904,2]
[367623397,1750879847252,-460.0,0.00018904,2]
[367623398,1750879847262,-817.46,0.00018904,2]
[367623400,1750879847271,-460.0,0.00018904,2]
[367623402,1750879847280,-1687.21,0.00018904,2]
[367623405,1750879847290,-3328.99,0.00018904,2]
[367623407,1750879847301,-521.37,0.00018904,2]
[367623409,1750879847310,-1003.52,0.00018904,2]
[367623411,1750879847320,-460.0,0.00018904,2]
[367623412,1750879847329,-2727.71,0.00018904,2]
[367623414,1750879847338,-1525.66,0.00018904,2]
[367623417,1750879847348,-501.38,0.00018904,2]
[367623419,1750879847358,-1919.22,0.00018904,2]
[367623421,1750879847367,-460.0,0.00018904,2]
[367623423,1750879847376,-460.0,0.00018904,2]
[367623425,1750879847385,-460.0,0.00018904,2]
[367623427,1750879847394,-460.0,0.00018904,2]
[367623429,1750879847404,-460.0,0.00018904,2]
[367623431,1750879847413,-845.12,0.00018904,2]
[367623433,1750879847423,-690.86,0.00018904,2]
[367623435,1750879847432,-460.2,0.00018904,2]
[367623437,1750879847441,-460.0,0.00018904,2]
[367623438,1750879847452,-1157.75,0.00018904,2]
[367623441,1750879847461,-1833.02,0.00018904,2]
[367623442,1750879847471,-560.09,0.00018904,2]
[367623445,1750879847480,-1998.0,0.00018904,2]
[367623447,1750879847489,-460.0,0.00018904,2]
[367623449,1750879847499,-671.46,0.00018904,2]
[367623451,1750879847508,-151.0,0.00018904,2]
[367623453,1750879847518,-151.0,0.00018904,2]
[367623455,1750879847527,-591.36,0.00018904,2]
[367623457,1750879847536,-1490.15,0.00018904,2]
[367623459,1750879847546,-907.24,0.00018904,2]
[367623461,1750879847555,-460.0,0.00018904,2]
[367623463,1750879847564,-151.0,0.00018904,2]
[367623465,1750879847574,-1029.88,0.00018904,2]
[367623467,1750879847583,-460.0,0.00018904,2]
[367623469,1750879847592,-460.0,0.00018904,2]
[367623471,1750879847602,-460.0,0.00018904,2]
[367623473,1750879847611,-2005.87,0.00018904,2]
[367623475,1750879847620,-196.042969,0.00018904,2]
[367623477,1750879847629,-196.042969,0.00018904,2]
[367623479,1750879847640,-168.0,0.0001893,2]
[367623481,1750879847653,-168.0,0.0001895,2]
[367623483,1750879847662,-215.0738,0.00018963,2]
[367623485,1750879847672,-29983.84612837,0.00018986,2]
[367623537,1750879848158,-435.36153411,0.00016438,2]
[367623539,1750879848168,-460.0,0.00016438,2]
[367623541,1750879848177,-376.00838907,0.00016438,2]
[367623543,1750879848187,-460.0,0.00016438,2]
[367623545,1750879848196,-460.0,0.00016438,2]
[367623547,1750879848206,-440.0,0.00016712,2]
[367623549,1750879848216,-460.0,0.00016712,2]
[367623551,1750879848225,-460.0,0.00016986,2]
[367623553,1750879848234,-151.0,0.00017052,2]
[367623555,1750879848246,-202.73,0.0001726,2]
[367623557,1750879848256,-460.0,0.00017808,2]
[367623559,1750879848265,-3782.04504379,0.00017982,2]
[367623562,1750879848275,-460.0,0.00018082,2]
[367623563,1750879848284,-460.0,0.00018356,2]
[367623565,1750879848294,-3782.04504379,0.0001853,2]
[367623567,1750879848303,-460.0,0.0001863,2]
[367623569,1750879848313,-460.0,0.00018904,2]
[367623572,1750879848323,-8917.09617936,0.00018986,2]
[367623574,1750879848332,-151.0,0.00018986,2]
[367623576,1750879848342,-806.18908074,0.00018986,2]
[367623578,1750879848352,-151.0,0.00018986,2]
[367623580,1750879848362,-151.0,0.00018986,2]
[367623582,1750879848371,-151.0,0.00018986,2]
[367623584,1750879848381,-252.125982,0.00018986,2]
[367623586,1750879848391,-252.125982,0.00018986,2]
[367623588,1750879848401,-568.0,0.00018997,2]
[367623590,1750879848411,-366.0085437,0.00018997,2]
[367623592,1750879848420,-366.0085437,0.00018997,2]
[367623594,1750879848431,-366.0085437,0.00018997,2]
[367623595,1750879848441,-366.0085437,0.00018997,2]
[367623598,1750879848450,-1892.35259034,0.00019,2]
[367623601,1750879848472,-18448.5117164,0.00019,2]
[367623603,1750879848481,-637.0,0.00019062,2]
[367623605,1750879848490,-151.0,0.00019062,2]
[367623606,1750879848500,-1179.36597773,0.00019096,2]
[367623607,1750879848509,-151.0,0.00019097,3]
[367623608,1750879848519,-151.0,0.000191,2]
[367623609,1750879848528,-151.0,0.000191,2]
[367623610,1750879848537,-3218.82112114,0.00019107,2]
[367623611,1750879848548,-1000.0,0.00019123,2]
[367623612,1750879848557,-1000.0,0.00019123,2]
[367623613,1750879848567,-1000.0,0.00019123,2]
[367623614,1750879848576,-1000.0,0.00019123,2]
[367623615,1750879848585,-1000.0,0.00019123,2]
[367623616,1750879848595,-1000.0,0.00019123,2]
[367623617,1750879848605,-758.83869008,0.00019123,2]
[367623618,1750879848615,-151.0,0.00019178,2]
[367623619,1750879848624,-151.0,0.00019178,2]
[367623621,1750879848633,-151.0,0.00019178,2]
[367623623,1750879848643,-151.0,0.00019178,2]
[367623625,1750879848657,-151.0,0.00019178,2]
[367623627,1750879848667,-151.0,0.00019178,2]
[367623629,1750879848677,-151.0,0.00019178,2]
[367623632,1750879848687,-151.0,0.00019178,2]
[367623634,1750879848697,-460.57754723,0.00019178,2]
[367623636,1750879848707,-151.0,0.00019178,2]
[367623638,1750879848716,-151.0,0.00019178,2]
[367623640,1750879848727,-151.0,0.00019178,2]
[367623642,1750879848737,-269.501941,0.00019178,2]
[367623643,1750879848747,-151.0,0.00019178,2]
[367623645,1750879848757,-460.0,0.00019178,2]
[367623647,1750879848766,-460.0,0.00019178,2]
[367623649,1750879848776,-460.0,0.00019178,2]
[367623651,1750879848786,-460.0,0.00019178,2]
[367623653,1750879848795,-460.0,0.00019178,2]
[367623656,1750879848805,-570.09,0.00019178,2]
[367623658,1750879848814,-460.0,0.00019178,2]
[367623660,1750879848824,-844.63,0.00019178,2]
[367623662,1750879848834,-460.0,0.00019178,2]
[367623664,1750879848843,-1854.08,0.00019178,2]
[367623666,1750879848853,-3439.32,0.00019178,2]
[367623668,1750879848864,-460.0,0.00019178,2]
[367623670,1750879848874,-1368.35,0.00019178,2]
[367623672,1750879848883,-1889.98,0.00019178,2]
[367623674,1750879848894,-485.01,0.00019178,2]
[367623676,1750879848905,-460.0,0.00019178,2]
[367623678,1750879848916,-764.44,0.00019178,2]
[367623695,1750879849063,-460.0,0.00019178,2]
[367623698,1750879849081,-460.0,0.00019178,2]
[367623700,1750879849091,-817.46,0.00019178,2]
[367623702,1750879849101,-460.0,0.00019178,2]
[367623704,1750879849110,-1687.21,0.00019178,2]
[367623706,1750879849119,-3328.99,0.00019178,2]
[367623708,1750879849129,-521.37,0.00019178,2]
[367623710,1750879849140,-1003.52,0.00019178,2]
[367623712,1750879849150,-460.0,0.00019178,2]
[367623714,1750879849160,-2727.71,0.00019178,2]
[367623716,1750879849170,-1525.66,0.00019178,2]
[367623718,1750879849179,-501.38,0.00019178,2]
[367623720,1750879849189,-1919.22,0.00019178,2]
[367623722,1750879849198,-460.0,0.00019178,2]
[367623724,1750879849207,-460.0,0.00019178,2]
[367623726,1750879849216,-460.0,0.00019178,2]
[367623728,1750879849225,-460.0,0.00019178,2]
[367623730,1750879849234,-460.0,0.00019178,2]
[367623732,1750879849243,-845.12,0.00019178,2]
[367623734,1750879849253,-690.86,0.00019178,2]
[367623736,1750879849262,-460.2,0.00019178,2]
[367623738,1750879849272,-460.0,0.00019178,2]
[367623740,1750879849281,-1157.75,0.00019178,2]
[367623741,1750879849290,-1833.02,0.00019178,2]
[367623743,1750879849300,-560.09,0.00019178,2]
[367623745,1750879849309,-1998.0,0.00019178,2]
[367623747,1750879849318,-460.0,0.00019178,2]
[367623749,1750879849328,-671.46,0.00019178,2]
[367623751,1750879849337,-151.0,0.00019178,2]
[367623753,1750879849346,-151.0,0.00019178,2]
[367623755,1750879849355,-591.36,0.00019178,2]
[367623757,1750879849364,-1490.15,0.00019178,2]
[367623759,1750879849373,-907.24,0.00019178,2]
[367623761,1750879849383,-460.0,0.00019178,2]
[367623763,1750879849394,-151.0,0.00019178,2]
[367623765,1750879849404,-1029.88,0.00019178,2]
[367623767,1750879849414,-460.0,0.00019178,2]
[367623769,1750879849423,-460.0,0.00019178,2]
[367623771,1750879849432,-460.0,0.00019178,2]
[367623773,1750879849442,-2005.87,0.00019178,2]
[367623775,1750879849451,-196.042969,0.00019178,2]
[367623777,1750879849461,-196.042969,0.00019178,2]
[367623779,1750879849470,-460.0,0.00019178,2]
[367623781,1750879849479,-485.844152,0.00019178,2]